Cogmind - Beta 13 @@@ ROGUE MODE // 2024.04.01 @ 23:12:45 Player: Cacho Result: Destroyed by G-47 Trooper with Particle Gun Performance ------------- Evolutions (0) 0 Regions Visited (2) 400 Robots Destroyed (26) 130 Value Destroyed (632) 632 Prototype IDs (0) 0 Alien Tech Used (0) 0 Bonus (0) 0 TOTAL SCORE: 1162 Bonus ------- None Cogmind --------- Core Integrity 0/250 Matter 179/300 Energy 250/250 System Corruption 0% Temperature Cool (15) Movement Walking (190) Ox1 Location -10/Mines Parts ------- > --- POWER (1) -------- Ion Engine > --- PROPULSION (2) --- Aluminum Leg Aluminum Leg > --- UTILITY (2) ------ Large Storage Unit Improved Signal Interpreter > --- WEAPON (2) ------- Light Cannon Flak Cannon > --- INVENTORY (15) --- Ion Engine Light Ion Engine Aluminum Leg Aluminum Leg Aluminum Leg VSS Leg Large Storage Unit Hardened Medium Armor Plating Authchip [Device] Assault Rifle Light Assault Rifle Heavy Assault Cannon Grenade Launcher Improved Datajack Peak State ------------ > --- POWER ------------ Ion Engine > --- PROPULSION ------- Aluminum Leg Aluminum Leg > --- UTILITY ---------- Large Storage Unit Improved Signal Interpreter > --- WEAPON ----------- Assault Rifle Flak Cannon > --- INVENTORY -------- Ion Engine Light Ion Engine Aluminum Leg Aluminum Leg Aluminum Leg VSS Leg Large Storage Unit Hardened Medium Armor Plating Authchip [Device] Light Assault Rifle Light Cannon Heavy Assault Cannon Grenade Launcher Improved Datajack [Rating: 13] Favorites ----------- Power Ion Engine Engine Ion Engine Propulsion Aluminum Leg Leg Aluminum Leg Utility Large Storage Unit Storage Large Storage Unit Processor Improved Signal Interpreter Hackware Hacking Suite Protection Backup Plating I Weapon Light Assault Rifle Energy Gun Medium Laser Ballistic Gun Light Assault Rifle Ballistic Cannon Light Cannon Launcher Grenade Launcher Build | -11 -10 -10 ------- Run | Yrd Mat Min Slots Evolved . | . . . Power . | . . . Propulsion . | . . . Utility . | . . . Weapon . | . . . Parts Attached 18 | . 14 4 Power 1 | . 1 . Engine 1 | . 1 . Core . | . . . Reactor . | . . . Propulsion 2 | . 2 . Treads . | . . . Leg 2 | . 2 . Wheel . | . . . Hover . | . . . Flight . | . . . Utility 3 | . 2 1 Device . | . . . Storage 1 | . 1 . Processor 1 | . . 1 Hackware 1 | . 1 . Protection . | . . . Artifact . | . . . Weapon 12 | . 9 3 Energy Gun 2 | . 2 . Energy Cannon . | . . . Ballistic Gun 1 | . 1 . Ballistic Cannon 4 | . 2 2 Launcher 5 | . 4 1 Special Weapon . | . . . Impact Weapon . | . . . Slashing Weapon . | . . . Piercing Weapon . | . . . Special Melee Weapon . | . . . Unidentified Prototypes . | . . . Parts Lost 4 | . 4 . Power 1 | . 1 . Propulsion 1 | . 1 . Utility 1 | . 1 . Weapon 1 | . 1 . Highest Loss Streak 2 | . 2 . To Critical Strikes . | . . . Average Slot Usage (%) 96 | . 95 99 Engine 13 | . 13 14 Leg 28 | . 28 28 Storage 19 | . 20 14 Processor 2 | . . 12 Protection 2 | . 2 1 Energy Gun 6 | . 8 . Ballistic Gun 13 | . 17 3 Ballistic Cannon 7 | . 2 24 Naked Turns . | . . . Heaviest Build 34 | 13 34 34 Greatest Support 20 | 20 20 20 Greatest Overweight (x) 1 | . 1 1 Average Overweight (x) . | . . 1 Largest Inventory Capacity 15 | 8 15 15 Average Capacity 13 | 8 14 15 Most Carried 15 | 6 15 15 Average Carried 11 | 6 10 14 Final Capacity 15 | 8 15 15 Final Carried 15 | 6 12 15 Class Distribution -------------------- 100% | Mutant Dominant Class ---------------- Mutant | -10/Materials Mutant | -10/Mines Resources | -11 -10 -10 ----------- Run | Yrd Mat Min Matter Collected 587 | 200 317 70 Remotely . | . . . Salvage Created 618 | . 542 76 Parts 38 | . 38 . Haulers Intercepted . | . . . Recyclers Shooed . | . . . Parts Field Recycled . | . . . Retrieved Matter . | . . . Parts Self-Destructed . | . . . Prevented . | . . . Kills | -11 -10 -10 ------- Run | Yrd Mat Min Combat Hostiles Destroyed 20 | . 16 4 Guns 12 | . 12 . Cannons 3 | . 1 2 AOE 5 | . 3 2 Classes Destroyed 6 | . 6 . Worker 1 | . 1 . Builder 1 | . 1 . Operator 1 | . 1 . Watcher 3 | . 3 . Swarmer 6 | . 6 . Grunt 14 | . 10 4 Best Kill Streak 5 | . 5 2 Combat Bots Only 3 | . 3 2 Max Kills in Single Turn 3 | . 3 1 Gunslinging . | . . . Exploded 2 | . 2 1 Melee . | . . . Uniques/NPCs Destroyed . | . . . Combat | -11 -10 -10 -------- Run | Yrd Mat Min Hostile Shots Fired 114 | . 93 21 Missed 36 | . 27 9 Damage Taken 925 | . 779 146 Core 253 | . 216 37 Absorbed by Shields . | . . . Core Remaining (%) 100 | 100 . . Volleys Fired 84 | . 69 15 Largest 2 | . 2 2 Hottest 79 | . 70 79 Shots Fired 161 | . 131 30 Gun 127 | . 121 6 Cannon 23 | . 3 20 Launcher 11 | . 7 4 Special . | . . . Kinetic 109 | . 83 26 Thermal 41 | . 41 . Explosive 11 | . 7 4 Electromagnetic . | . . . Robot Hit Streak 9 | . 6 9 Robot Miss Streak 8 | . 5 8 Penetration Max . | . . . Secondary Targets 3 | . 3 . Max Gunslinging Chain 1 | . 1 . Shots Hit Robots 91 | . 70 21 Core Hits 53 | . 41 12 Critical Kills . | . . . Critical Parts Destroyed 1 | . 1 . Critical Strikes 3 | . 2 1 Burn 1 | . 1 . Destroy 1 | . 1 . Blast 1 | . . 1 Melee Attacks . | . . . Impact . | . . . Slashing . | . . . Piercing . | . . . Sneak Attacks . | . . . Combat Hostiles . | . . . Follow-up Attacks . | . . . Damage Inflicted 1523 | . 1030 493 Guns 711 | . 661 50 Cannons 252 | . 34 218 Explosions 551 | . 333 218 Melee . | . . . Ramming 9 | . 2 7 Kinetic 694 | . 426 268 Thermal 269 | . 269 . Explosive 551 | . 333 218 Electromagnetic . | . . . Impact . | . . . Slashing . | . . . Piercing . | . . . Highest Corruption . | . . . Average Corruption . | . . . Corruption Purged . | . . . Corruption Blocked . | . . . Overload Shots . | . . . Overflow Damage 8 | . 6 2 Projectiles . | . . . Explosions 8 | . 6 2 Melee . | . . . Knockbacks 10 | . . 10 Impact . | . . . Kinetic 9 | . . 9 Secondary 1 | . . 1 Self-Inflicted Damage 110 | . 110 . Shots 4 | . 4 . Rammed . | . . . Targets Rammed 3 | . 1 2 Kicked 3 | . 1 2 Crushed . | . . . Highest Temperature 271 | . 271 186 Average Temperature 59 | . 54 81 Received Heat Transfer 369 | . 288 81 Siege Activations . | . . . Robots Corrupted . | . . . Combat Hostiles . | . . . Parts Fried . | . . . Impact Corruptions . | . . . Robots Melted . | . . . Combat Hostiles . | . . . Parts Melted 1 | . 1 . Heat Transferred 888 | . 888 . Parts Sabotaged . | . . . Parts Stolen . | . . . Parts Stripped . | . . . Power Chain Reactions . | . . . Alert | -11 -10 -10 ------- Run | Yrd Mat Min Peak Influence 213 | . 213 196 Initial 78 | . . 78 Average 104 | . 106 143 Maximum Alert Level 1 | . 1 . Low Security (%) 89 | 100 85 100 Level 1 10 | . 14 . Level 2 . | . . . Level 3 . | . . . Level 4 . | . . . Level 5 . | . . . High Security . | . . . Max Security . | . . . Squads Dispatched 6 | . 5 1 Investigation 5 | . 4 1 Extermination . | . . . Reinforcement 1 | . 1 . Assault . | . . . Garrison . | . . . Intercept . | . . . Searches Triggered . | . . . Construction Impeded . | . . . Haulers Reinforced . | . . . Active Scanning Responses . | . . . Cargo Convoy Interrupts . | . . . Stealth | -11 -10 -10 --------- Run | Yrd Mat Min Distress Signals 1 | . 1 . Communications Jammed . | . . . Distress Signals . | . . . Times Spotted 35 | . 29 6 Peak Tracking Total 4 | . 4 2 Tactical Retreats . | . . . Traps | -11 -10 -10 ------- Run | Yrd Mat Min Traps Triggered 1 | . 1 . Indirectly . | . . . Trap Hack Attempts . | . . . Triggered . | . . . Disarmed . | . . . Reprogrammed . | . . . Reused . | . . . Traps Extracted . | . . . Installed . | . . . Triggered . | . . . Machines | -11 -10 -10 ---------- Run | Yrd Mat Min Machines Disabled . | . . . Max in Single Turn . | . . . Machines Repaired . | . . . Machines Dismantled . | . . . Machines Sabotaged . | . . . Overloaded Fab Kills . | . . . Hacking | -11 -10 -10 --------- Run | Yrd Mat Min Machines Accessed 9 | . 8 1 Terminals 5 | . 5 . Fabricators . | . . . Repair Stations 1 | . 1 . Recycling Units 2 | . 2 . Scanalyzers . | . . . Garrison Access . | . . . Total Hacks 28 | . 27 1 Successful 17 | . 16 1 Failed 10 | . 10 . Catastrophic 2 | . 2 . Database Lockouts 1 | . 1 . Manual 5 | . 5 . Terminals 20 | . 20 . Fabricators . | . . . Repair Stations 4 | . 4 . Recycling Units 3 | . 3 . Scanalyzers . | . . . Garrison Access . | . . . Terminal Hacks 13 | . 12 1 Record 9 | . 9 . Open Door 1 | . . 1 Alert Level 1 | . 1 . Maintenance Status 1 | . 1 . Hauler Manifests 1 | . 1 . Fabricator Hacks . | . . . Repair Station Hacks 2 | . 2 . Scan Component 1 | . 1 . Refit 1 | . 1 . Recycling Unit Hacks 2 | . 2 . Retrieve Components 2 | . 2 . Scanalyzer . | . . . Garrison Access Hacks . | . . . Unauthorized Hacks . | . . . Terminals . | . . . Fabricators . | . . . Repair Stations . | . . . Recycling Units . | . . . Scanalyzers . | . . . Garrison Access . | . . . Data Cores Recovered . | . . . Used . | . . . Hacking Detections 6 | . 6 . Full Trace Events 3 | . 3 . Feedback Events . | . . . Feedback Blocked . | . . . Robot Schematics Acquired . | . . . Robots Built . | . . . Authchips . | . . . Time . | . . . Total Robot Build Rating . | . . . Part Schematics Acquired . | . . . Parts Built . | . . . Authchips . | . . . Time . | . . . Total Part Build Rating . | . . . Parts Repaired . | . . . Time . | . . . Parts Recycled . | . . . Recycled Matter . | . . . Retrieved Matter . | . . . Retrieved Components 12 | . 12 . Parts Scanalyzed . | . . . Part Schematics Acquired . | . . . Parts Damaged . | . . . Bothacking | -11 -10 -10 ------------ Run | Yrd Mat Min Used RIF Installer . | . . . Robots Hacked . | . . . Non-combat . | . . . Combat . | . . . Robot Hacks Applied . | . . . Relay Couplers Released . | . . . Fabnet Peak Effective % . | . . . Robots Rewired . | . . . Allies Hacked . | . . . Hacks Repelled . | . . . Allies | -11 -10 -10 -------- Run | Yrd Mat Min Total Allies . | . . . Largest Group . | . . . Highest-Rated Group . | . . . Highest-Rated Ally . | . . . Total Orders . | . . . Ally Attacks . | . . . Total Damage . | . . . Kills . | . . . Allies Corrupted . | . . . Allies Melted . | . . . Intel | -11 -10 -10 ------- Run | Yrd Mat Min Robot Analysis Total . | . . . Derelict Logs Recovered . | . . . Drone Launches . | . . . Drone Recoveries . | . . . Exploration | -11 -10 -10 ------------- Run | Yrd Mat Min Turns Passed 2025 | 193 1396 436 Spaces Moved 883 | 47 642 194 Core . | . . . Treads . | . . . Legs 883 | 47 642 194 Wheels . | . . . Hover . | . . . Flight . | . . . Fastest Speed 120 | 120 120 190 Average Speed 180 | 120 182 190 Slowest Speed 190 | 120 190 190 Overloaded Moves . | . . . Propulsion Burnouts . | . . . Robots Hopped . | . . . Cave-ins Triggered . | . . . Exploration Rate (%) 46 | 5 88 45 Regions Visited 2 Branch Regions 1 Pre-discovered Areas . | . . . Known Exits Taken . | . . . Unknown Exits Taken 2 | 1 1 . Scrap Searched 1 | . . 1 Spaces Dug . | . . . Terrain Destroyed 87 | . 48 39 Melee . | . . . Projectile . | . . . AOE 87 | . 48 39 Terrain Rammed . | . . . Walls Destroyed . | . . . Machines Disabled . | . . . Actions | -11 -10 -10 --------- Run | Yrd Mat Min Total 1162 | 183 747 232 Wait 146 | 137 2 7 Move 881 | 46 641 194 Hop . | . . . Pick Up 21 | . 15 6 Fast Attach . | . . . Attach 6 | . 5 1 Detach . | . . . Swap 12 | . 9 3 Drop 9 | . 5 4 Fire 84 | . 69 15 Melee . | . . . Ram . | . . . Kick 3 | . 1 2 Crush . | . . . Escape Stasis . | . . . Rewire . | . . . Trap . | . . . Miscellaneous . | . . . Route ------- -11/Scrapyard -10/Materials (discovered 4 exits: [*Mat x3] / *Min) -10/Mines History --------- Turn | Location | Event 1 | -11/Scrapyard | Discovered new exit (range 3) 194 | -11/Scrapyard | Entered Materials 309 | -10/Materials | Build established: Mutant 389 | -10/Materials | Discovered new exit (range 15) 680 | -10/Materials | Discovered new exit (range 16) 1022 | -10/Materials | Core integrity fell below 50% 1058 | -10/Materials | Central database locked down 1070 | -10/Materials | Discovered new exit (range 3) 1324 | -10/Materials | Discovered new exit (range 15) 1424 | -10/Materials | Core integrity fell below 20% 1590 | -10/Materials | Entered Mines 1603 | -10/Mines | Met a Derelict shopkeep closing up shop 2026 | -10/Mines | Destroyed by G-47 Trooper with Particle Gun Last Messages --------------- 01711_ U-05 Engineer lays Concrete. 01714_ U-05 Engineer builds a Wall. 01720_ U-05 Engineer lays Concrete. 01723_ U-05 Engineer builds a Wall. 01723_ K-01 Serf collects debris. 01752_ G-47 Trooper knocked back. 01755_ G-47 Trooper Imp. Heat Sink blasted off. 01755_ G-47 Trooper knocked back. 01761_ G-34 Mercenary knocked back. 01767_ G-47 Trooper destroyed. 01767_ K-01 Serf knocked back. 01770_ G-34 Mercenary destroyed. 01775_ Acquired 37 matter. 01776_ Acquired 12 matter. 01778_ Acquired 7 matter. 01782_ Acquired 4 matter. 01868_ K-01 Serf collects debris. 01953_ Kicked T-07 Excavator. 01955_ T-07 Excavator is excavating. 01957_ Kicked T-07 Excavator. Map ----- +----------------------------------------------------+ | ????????????????????????????????????? | | ####????????????????????????????????? | | """#????????????????????????????????? | | = #????????????????????????????????? | | =##????????????????????????????????? | | !#####?????????????????????????????? | | ## ###???????????????????????????? | | |X ##??????????????????????????? | | #??????????????????????????? | | ##??????????????????????????? | | ########???????????????????????????? | | ##??????????????????????????????????? | | #???????????????????????????????????? | | #???????????????????????????????????? | | #???????????????????#???????????????? | | #??????????????????? ?????????"?????? | | #??????????????????# #????????"""???? | | ###????????????????# #??????? """???? | | #????????????????# #??????? g ???? | | ##???????????????# #?????? g"""???? | | # #?????????####### #?????? """ #?? | | #????# #### ## #????? """ #?? | | ##????# # #####? #?? | | #?????????# # """ ??? | | #?????????## # """ #?? | | #?????????## ## @ """ #?? | | ###????????## ### #?? | | ??????????## ##?# # #?? | | ???????#### #??# ##########?? | | ??????## #??# #??????????? | | ?????## ##??# #??????????? | | ?????# ####??? #??????????? | | ###??# ##?????? ??????????? | | ##?## ####?????? ??????????? | | #### ##?????????# ??????????? | | ## ##??????????#####??????????? | | #??????????????????????????? | | #??????????????????????????? | | #??????????????????????????? | | ##??????????????????????????? | | ##???????????????????????????? | | #????????????????????????????? | | #????????????????????????????? | | ##????????????????????????????? | | #####?????????????????????????????? | | ###?????????????????????????????????? | | ????????????????????????????????????? | | ????????????????????????????????????? | | ????????????????????????????????????? | | ????????????????????????????????????? | +----------------------------------------------------+ Best States ------------- Heat Dissipation 25 Energy Generation 10 Energy Capacity 250 Matter Stores 300 Matter Capacity 300 Sight Range 16 Terrain Scan Density 10 Armor Coverage 80 Evasion (%) 55 Offensive Hacking 10 Authchip Count 1 Item Schematics ----------------- None Robot Schematics ------------------ None Fabricated ------------ Nothing Alien Tech Used ----------------- None Achievements -------------- None Challenges ------------ None Game ------ Seed ActiveDecoderCycler Manual? 0 Play Time 00:35:23 Cumulative 15.4 hours Start 2024.04.01 @ 22:22:21 End 2024.04.01 @ 23:12:45 Sessions 2 Manual Loads 0 Difficulty Rogue Special Mode None Game No. 10 Rogue 9 Adventurer 1 Explorer 0 Win Type - Total 0 Types 0/0/0/0/0/0/0/0/0 Lore% 18 Gallery% 19 Achievement% 17 Wizard Run 0 Options --------- Layout 0 ASCII 1 Keyboard 0 Movement Mouse Keybinds 0 Fullscreen 2 Font 18/SmallcapsGlow Map View 76x50 Zoom Use 0% Tactical HUD 1 Map Filters NONE Filters NONE Steam 1 RUN: 150fb251-fb8f-4af0-a240-52f7b36812f4